bitfinex/quotes_SOLUSD_20241209
["timestamp","ask_amount","ask_price","bid_price","bid_amount"]
[1733781985624,9.9999438,218.06,217.97,36.20633428]
[1733781985795,9.9999438,218.06,217.99,36.20633428]
[1733781986330,6.4999438,218.02,217.93,36.20633428]
[1733781986532,6.4999438,218.0,217.88,18.375337]
[1733781986821,6.4999438,217.93,217.7,18.3005]
[1733781987024,6.4999438,217.87,217.65,11.4863]
[1733781987202,6.6254338,217.8,217.64,10.0]
[1733781987395,6.4999438,217.66,217.54,10.0]
[1733781987591,6.4999438,217.66,217.57,46.20633428]
[1733781987805,10.0,217.82,217.4,8.3005]
[1733781987806,6.4999438,217.58,217.48,10.0]
[1733781988133,0.12549,217.54,217.45,10.0]
[1733781988288,6.4999438,217.58,217.43,10.0]
[1733781988489,6.4999438,217.61,217.53,36.20633428]
[1733781988695,6.4999438,217.57,217.49,10.0]
[1733781988896,6.4999438,217.61,217.49,10.0]
[1733781989104,6.4999438,217.5,217.49,10.0]
[1733781989518,6.4999438,217.41,217.34,10.0]
[1733781989698,6.4999438,217.39,217.28,10.0]
[1733781989901,6.4999438,217.39,216.84,23.52972785]
[1733781989902,6.4999438,217.26,217.2,10.0]
[1733781990234,6.4999438,217.27,217.17,10.0]
[1733781990392,10.0,217.4,217.17,10.0]
[1733781990393,6.4999438,217.29,217.19,36.20633428]
[1733781990594,6.4999438,217.29,217.13,13.5000562]
[1733781990789,0.12549,217.35,217.28,36.20633428]
[1733781991131,3.4487,217.47,217.34,36.20633428]
[1733781991294,13.4471,217.57,217.37,32.32681144]
[1733781991494,3.4471,217.57,217.31,10.0]
[1733781991821,10.0,217.46,217.1,10.0]
[1733781992022,10.0,217.43,217.17,32.32681144]
[1733781992241,10.0,217.27,217.01,0.946354]
[1733781992535,10.0,217.27,217.03,10.0]
[1733781992694,10.0,217.29,217.12,32.32681144]
[1733781992900,10.0,217.47,217.28,32.32681144]
[1733781993103,10.0,217.45,217.16,10.0]
[1733781993324,10.0,217.47,217.19,10.0]
[1733781993492,3.4479,217.52,217.25,10.0]
[1733781993833,10.0,217.62,217.34,10.0]
[1733781994022,10.0,217.62,217.49,32.32681144]
[1733781994230,10.0,217.67,217.55,32.32681144]
[1733781994408,10.0,217.75,217.55,32.32681144]
[1733781994613,3.444,217.77,217.59,32.32681144]
[1733781994911,10.0,217.81,217.5,10.0]
[1733781995097,22.9689,217.82,217.55,42.32681144]
[1733781995098,10.0,217.76,217.55,42.32681144]
[1733781995304,10.0,217.76,217.51,32.32681144]
[1733781995504,10.0,217.74,217.42,10.0]
[1733781995810,10.0,217.67,217.31,10.0]
[1733781996145,10.0,217.53,217.26,10.0]
[1733781996305,10.0,217.57,217.28,10.0]
[1733781996306,10.0,217.47,217.28,10.0]
[1733781996507,10.0,217.39,217.28,10.0]
[1733781996711,10.0,217.37,217.28,10.0]
[1733781996915,3.4489,217.46,217.07,10.0]
[1733781996916,10.0,217.3,217.07,10.0]
[1733781997129,0.12549,217.26,217.11,11.5151]
[1733781997330,10.0,217.29,217.15,32.32681144]
[1733781997542,0.12549,217.3,217.11,11.5151]
[1733781997924,0.12549,217.28,217.11,11.5151]
[1733781998143,0.12549,217.22,217.01,33.27316544]
[1733781998454,10.0,217.28,217.05,32.32681144]
[1733781998455,10.0,217.21,217.05,32.32681144]
[1733781998750,10.0,217.2,217.11,32.32681144]
[1733781998903,10.0,217.27,217.15,32.32681144]
[1733781999107,10.0,217.27,217.19,32.32681144]
[1733781999328,10.0,217.33,217.23,32.32681144]
[1733781999511,10.0,217.42,217.15,10.0]
[1733781999731,10.0,217.45,217.31,32.32681144]
[1733782000036,10.0,217.57,217.43,32.32681144]
[1733782000244,10.0,217.64,217.45,32.32681144]
[1733782000614,3.4464,217.62,217.38,33.776884]
[1733782000954,10.0,217.54,217.38,10.0]
[1733782001241,10.0,217.45,217.21,10.0]
[1733782001410,0.12549,217.42,217.18,36.53781187]
[1733782001618,0.12549,217.4,217.14,36.53781187]
[1733782001938,10.0,217.32,217.09,10.0]
[1733782002120,10.0,217.22,217.02,10.0]
[1733782002324,0.12549,217.25,217.01,0.946354]
[1733782002539,13.57779,217.25,217.01,0.946354]
[1733782002743,0.12549,217.14,217.01,0.946354]
[1733782002943,0.12549,217.12,217.01,0.946354]
[1733782003123,10.0,217.08,217.01,0.946354]
[1733782003314,6.4977,217.02,217.01,0.946354]
[1733782003515,6.4977,217.05,217.01,0.946354]
[1733782003743,0.25098,217.04,217.01,0.946354]
[1733782003949,6.4977,217.02,217.01,0.946354]
[1733782004255,6.12319,217.04,217.01,0.946354]
[1733782004432,6.12319,217.05,217.01,0.946354]
[1733782004622,6.12319,217.02,217.01,0.946354]
[1733782004820,6.12319,217.05,217.01,0.946354]
[1733782005151,6.12319,217.09,217.01,0.946354]
[1733782005335,6.12319,217.06,217.01,0.946354]
[1733782005537,6.12319,217.04,217.01,0.946354]
[1733782005746,6.12319,217.06,217.01,0.946354]
[1733782006045,6.12319,217.05,217.01,0.946354]
[1733782006253,6.12319,217.04,217.01,0.946354]
[1733782006510,6.12319,217.02,217.01,0.946354]
[1733782006621,6.12319,217.09,217.01,37.48416587]
[1733782006815,10.0,217.34,217.08,36.53781187]
[1733782007022,10.0,217.34,217.21,36.53781187]
[1733782007220,10.0,217.38,217.25,36.53781187]
[1733782007437,10.0,217.43,217.19,36.53781187]
[1733782007640,10.0,217.41,217.18,23.776884]
[1733782007844,10.0,217.34,217.14,10.0]
[1733782008056,10.0,217.32,217.08,36.53781187]
[1733782008341,20.0,217.32,217.08,36.53781187]
[1733782008567,0.12549,217.24,217.07,20.0]
[1733782008882,0.12549,217.24,217.01,0.946354]
[1733782008883,0.12549,217.17,217.01,0.946354]
[1733782009038,0.12549,217.13,217.01,0.946354]
[1733782009234,0.12549,217.09,217.01,0.946354]
[1733782009566,0.12549,217.06,217.01,0.946354]
[1733782009765,20.0,217.06,217.01,0.946354]
[1733782009965,20.0,217.11,217.01,0.946354]
[1733782010133,10.0,217.28,217.09,36.53781187]
[1733782010340,10.0,217.35,217.18,36.53781187]
[1733782010600,13.4508,217.34,217.19,36.53781187]
[1733782010745,28.443944,217.34,217.19,36.53781187]
[1733782011078,28.443944,217.34,217.22,23.776884]
[1733782011254,18.443944,217.34,217.29,36.53781187]
[1733782011445,18.443944,217.34,217.31,36.53781187]
[1733782012070,18.443944,217.34,217.25,36.53781187]
[1733782012282,18.443944,217.34,217.23,36.53781187]
[1733782012487,18.443944,217.34,217.19,36.53781187]
[1733782012771,0.12549,217.31,217.13,36.53781187]
[1733782012944,0.68878371,217.32,217.21,36.53781187]
[1733782013144,0.68878371,217.4,217.3,36.53781187]
[1733782013441,0.68878371,217.5,217.35,36.53781187]
[1733782013645,0.68878371,217.5,217.39,36.53781187]
[1733782013646,10.0,217.42,217.39,36.53781187]
[1733782013881,10.0,217.42,217.41,36.53781187]
[1733782014045,0.68878371,217.59,217.42,23.776884]
[1733782014241,0.68878371,217.64,217.52,36.53781187]
[1733782014470,0.68878371,217.69,217.54,36.53781187]
[1733782014681,0.12549,217.63,217.52,36.53781187]
[1733782014963,10.0,217.58,217.42,36.53781187]
[1733782015151,10.68878371,217.57,217.38,36.53781187]
[1733782015356,0.12549,217.46,217.28,36.53781187]
[1733782015543,0.68878371,217.46,217.26,36.53781187]
[1733782015745,10.0,217.48,217.3,36.53781187]
[1733782015946,0.68878371,217.47,217.34,36.53781187]
[1733782016261,0.68878371,217.56,217.42,36.53781187]
[1733782016572,10.0,217.64,217.55,36.53781187]
[1733782016968,0.68878371,217.63,217.51,36.53781187]
[1733782017153,10.0,217.64,217.55,36.53781187]
[1733782017350,10.0,217.64,217.44,20.0]
[1733782017351,10.0,217.64,217.59,36.53781187]
[1733782017550,10.0,217.64,217.55,36.53781187]
[1733782017744,0.68878371,217.74,217.53,36.53781187]
[1733782017948,70.0,217.73,217.49,36.53781187]
[1733782018148,0.68878371,217.72,217.53,36.53781187]
[1733782018464,0.68878371,217.75,217.61,36.53781187]
[1733782018663,0.68878371,217.81,217.63,36.53781187]
[1733782018973,3.4435,217.8,217.63,36.53781187]
[1733782019171,0.68878371,217.79,217.63,36.53781187]
[1733782019749,0.68878371,217.79,217.59,36.53781187]
[1733782019974,0.68878371,217.79,217.57,10.0]
[1733782020269,0.68878371,217.79,217.64,36.53781187]
[1733782020573,0.68878371,217.83,217.69,36.53781187]
[1733782020780,0.68878371,217.83,217.71,36.53781187]
[1733782021079,0.68878371,217.83,217.65,0.68896632]
[1733782021080,0.68878371,217.85,217.65,10.0]
[1733782021249,82.5634,217.97,217.65,42.92268696]
[1733782021250,10.0,217.88,217.65,42.92268696]
[1733782021449,3.4418,217.91,217.62,0.68861832]
[1733782021450,0.12549,217.78,217.62,0.68861832]
[1733782021651,0.12549,217.75,217.54,32.23402439]
[1733782021879,0.12549,217.71,217.51,0.68896568]
[1733782022047,10.0,217.67,217.46,32.92323686]
[1733782022246,20.0,217.48,217.4,0.68944068]
[1733782022463,20.0,217.54,217.36,32.23402439]
[1733782022667,20.0,217.48,217.25,8.1212]
[1733782022852,20.0,217.4,217.26,0.68990004]
[1733782023063,0.12549,217.39,217.26,32.23402439]
[1733782023263,0.81427371,217.39,217.26,0.14283]
[1733782023463,20.0,217.32,217.26,0.14283]
[1733782023652,20.12549,217.27,217.26,0.14283]
[1733782023855,20.12549,217.31,217.26,0.01743]
[1733782024054,20.0,217.31,217.26,0.01743]
[1733782024247,20.0,217.31,217.12,10.0]
[1733782024493,20.0,217.33,217.16,32.23402439]
[1733782024670,3.4514,217.3,217.15,32.23402439]
[1733782025077,3.4514,217.3,217.09,10.0]
[1733782025257,3.4514,217.3,217.19,36.56500925]
[1733782025459,3.4514,217.3,217.14,36.56500925]
[1733782025879,0.68878371,217.29,217.12,36.56500925]
[1733782026059,20.0,217.27,217.06,36.56500925]
[1733782026259,0.12549,217.21,217.1,36.56500925]
[1733782026455,0.68878371,217.21,217.1,36.56500925]
[1733782026665,3.4517,217.28,217.16,36.56500925]
[1733782026881,0.68878371,217.29,217.2,36.56500925]
[1733782027165,0.68878371,217.36,217.24,36.56500925]
[1733782027366,4.13808371,217.43,217.28,36.56500925]
[1733782027566,4.13808371,217.43,217.18,10.0]
[1733782027567,4.13808371,217.43,217.3,36.56500925]
[1733782027784,0.68878371,217.43,217.34,36.56500925]
[1733782027999,0.68878371,217.47,217.34,36.56500925]
[1733782028159,3.4486,217.48,217.31,23.776884]
[1733782028364,0.68878371,217.47,217.28,36.56500925]
[1733782028582,3.4489,217.46,217.26,36.56500925]
[1733782028889,0.68878371,217.45,217.26,36.56500925]
[1733782029183,0.68878371,217.45,217.37,36.56500925]
[1733782029397,0.68878371,217.5,217.39,36.56500925]
[1733782029583,0.68878371,217.59,217.33,10.0]
[1733782029763,3.4474,217.56,217.34,0.68967918]
[1733782029967,3.4474,217.56,217.31,36.56500925]
[1733782029968,10.68878371,217.55,217.31,36.56500925]
[1733782030198,0.12549,217.54,217.35,36.56500925]
[1733782030396,0.68878371,217.53,217.37,36.56500925]
[1733782030691,3.4474,217.56,217.41,36.56500925]
[1733782030692,0.68878371,217.55,217.41,36.56500925]
[1733782030858,0.68878371,217.55,217.42,23.776884]
[1733782031061,0.68878371,217.54,217.37,36.56500925]
[1733782031275,0.12549,217.53,217.35,36.56500925]
[1733782031491,10.0,217.5,217.27,23.776884]
[1733782031674,10.81427371,217.49,217.3,36.56500925]
[1733782031882,20.0,217.45,217.28,36.56500925]
[1733782032177,0.68878371,217.44,217.28,36.56500925]
[1733782032385,0.68878371,217.44,217.18,10.0]
[1733782032386,0.68878371,217.44,217.24,36.56500925]
[1733782032580,20.0,217.34,217.22,36.56500925]
[1733782032791,0.68878371,217.33,217.22,36.56500925]
[1733782032999,0.68878371,217.33,217.2,36.56500925]
[1733782033309,2.18712627,217.6,217.13,10.0]
[1733782033310,0.68878371,217.45,217.28,36.56500925]
[1733782033465,0.68878371,217.45,217.3,36.56500925]
[1733782033670,0.68878371,217.45,217.22,10.0]
[1733782033671,0.68878371,217.45,217.34,36.56500925]
[1733782034088,3.4487,217.47,217.32,36.56500925]
[1733782034363,3.448,217.52,217.4,36.56500925]
[1733782034579,3.448,217.52,217.38,36.56500925]
[1733782034896,0.68878371,217.58,217.47,36.56500925]
[1733782035094,4.13388371,217.7,217.49,36.56500925]
[1733782035396,4.13388371,217.7,217.53,36.56500925]
[1733782035570,4.13388371,217.7,217.54,0.68932534]
[1733782035765,4.13388371,217.7,217.42,10.0]
[1733782035966,11.02408371,217.7,217.49,36.56500925]
[1733782036293,4.13388371,217.7,217.59,36.56500925]
[1733782036466,4.13308371,217.75,217.62,36.56500925]
[1733782036667,0.68878371,217.74,217.68,36.56500925]
[1733782036893,13.7584,218.05,217.54,10.0]
[1733782036894,0.68878371,217.82,217.7,36.56500925]
[1733782037216,14.13048371,217.91,217.72,36.56500925]
[1733782037411,14.13048371,217.91,217.65,10.0]
[1733782037412,4.13048371,217.91,217.74,36.56500925]
[1733782037575,10.0,217.87,217.66,0.68868867]
[1733782037781,0.12549,217.79,217.58,36.56500925]
[1733782038073,0.12549,217.71,217.5,36.56500925]
[1733782038299,0.68878371,217.71,217.5,36.56500925]
[1733782038614,0.68878371,217.71,217.4,7.6886]
[1733782038615,0.12549,217.69,217.56,36.56500925]
[1733782038776,23.776884,217.68,217.6,36.56500925]
[1733782038975,0.12549,217.74,217.62,36.56500925]
[1733782039174,4.13308371,217.75,217.6,36.56500925]
[1733782039372,4.13308371,217.75,217.53,10.0]
[1733782039373,4.13308371,217.75,217.53,36.56500925]
[1733782039591,80.0,217.74,217.49,36.56500925]
[1733782039799,10.12549,217.7,217.44,36.56500925]
[1733782039997,0.12549,217.6,217.38,36.56500925]
[1733782040181,0.12549,217.53,217.31,37.25472995]
[1733782040370,23.776884,217.4,217.28,36.56500925]
[1733782040592,0.12549,217.48,217.34,36.56500925]
[1733782040793,23.776884,217.46,217.36,36.56500925]
[1733782040973,23.776884,217.48,217.37,0.68988319]
[1733782041176,20.0,217.41,217.28,36.56500925]
[1733782041393,20.0,217.33,217.26,36.56500925]
[1733782041895,23.776884,217.39,217.32,36.56500925]
[1733782042076,23.776884,217.44,217.36,36.56500925]
[1733782042277,20.0,217.41,217.29,36.56500925]
[1733782042478,20.0,217.41,217.16,72.3]
[1733782042479,20.0,217.36,217.25,36.56500925]
[1733782042775,20.0,217.31,217.11,16.27535899]
[1733782042975,23.776884,217.29,217.17,36.56500925]
[1733782043180,0.68878371,217.3,217.2,36.56500925]
[1733782043490,23.776884,217.34,217.28,36.56500925]
[1733782043696,3.4498,217.41,217.26,36.56500925]
[1733782043896,3.4498,217.41,217.2,36.56500925]
[1733782043897,0.68878371,217.4,217.2,36.56500925]
[1733782044084,20.0,217.38,217.18,36.56500925]
[1733782044279,0.68878371,217.37,217.2,36.56500925]
[1733782044479,0.12549,217.34,217.15,36.56500925]
[1733782044682,0.68878371,217.34,217.23,36.56500925]
[1733782045009,0.68878371,217.33,217.22,36.56500925]
[1733782045301,0.68878371,217.34,217.23,32.39580779]
[1733782045502,0.68878371,217.38,217.29,32.39580779]
[1733782045803,0.68878371,217.38,217.18,10.0]
[1733782045804,0.68878371,217.51,217.37,32.39580779]
[1733782045994,4.13538371,217.6,217.43,32.39580779]
[1733782046181,4.13538371,217.6,217.37,32.39580779]
[1733782046528,70.0,217.55,217.29,32.39580779]
[1733782046800,0.12549,217.46,217.23,32.39580779]
[1733782047106,0.81427371,217.46,217.28,32.39580779]
[1733782047309,0.68878371,217.46,217.34,32.39580779]
[1733782047478,0.68878371,217.46,217.26,32.39580779]
[1733782047681,70.12549,217.45,217.2,32.39580779]
[1733782047894,10.0,217.41,217.18,32.39580779]
[1733782048120,0.12549,217.33,217.14,32.39580779]
[1733782048300,0.68878371,217.33,217.15,0.69060595]
[1733782048504,0.12549,217.28,217.1,32.39580779]
[1733782048713,0.12549,217.2,217.06,32.39580779]
[1733782048925,20.0,217.17,217.06,32.39580779]
[1733782049230,0.25098,217.08,217.01,55.5311583]
[1733782049391,0.68878371,217.11,217.01,55.5311583]
[1733782049589,33.902374,217.21,217.01,55.5311583]
[1733782049794,0.12549,217.09,217.01,55.5311583]
[1733782050111,20.0,217.05,217.01,55.5311583]
[1733782050520,23.776884,217.12,217.01,55.5311583]
[1733782050729,0.68878371,217.11,217.01,55.5311583]
[1733782050904,23.776884,217.1,217.01,55.5311583]
[1733782051106,0.68878371,217.2,217.02,32.39580779]
[1733782051390,10.0,217.18,217.01,55.5311583]
[1733782051604,0.25098,217.14,217.01,55.5311583]
[1733782051810,0.25098,217.12,217.01,55.5311583]
[1733782052019,0.68878371,217.11,217.01,55.5311583]
[1733782052201,0.12549,217.1,217.01,55.5311583]
[1733782052401,3.4531,217.19,217.01,55.5311583]
[1733782052402,0.68878371,217.12,217.03,32.39580779]
[1733782052627,0.68878371,217.22,217.11,32.39580779]
[1733782052831,0.68878371,217.22,217.07,32.39580779]
[1733782053012,0.68878371,217.22,217.01,55.5311583]
[1733782053013,0.68878371,217.22,217.03,32.39580779]
[1733782053213,10.0,217.18,217.01,55.5311583]
[1733782053415,3.4528,217.21,217.03,32.39580779]
[1733782053416,0.68878371,217.17,217.03,32.39580779]
[1733782053601,0.68878371,217.2,217.05,32.39580779]
[1733782054504,20.0,217.17,217.01,87.92696609]
[1733782054703,0.68878371,217.19,217.08,32.39580779]
[1733782054923,0.68878371,217.18,217.04,32.39580779]
[1733782055644,3.4521,217.26,217.08,32.39580779]
[1733782055828,0.68878371,217.25,217.16,32.39580779]
[1733782056003,230.38545598,217.48,217.05,18.0637]
[1733782056004,4.13908371,217.37,217.22,32.39580779]
[1733782056203,4.13908371,217.37,217.17,0.69046575]
[1733782056428,0.12549,217.33,217.1,32.39580779]
[1733782056628,0.12549,217.28,217.04,33.08645987]
[1733782056804,0.12549,217.24,217.02,32.39580779]
[1733782057005,0.68878371,217.24,217.02,0.69088745]
[1733782057223,0.12549,217.19,217.0,69.13331048]
[1733782057423,80.0,217.13,217.01,52.8898583]
[1733782057628,20.0,217.06,217.01,29.1206583]
[1733782057946,10.12549,216.97,216.87,80.68880638]
[1733782058108,0.12549,216.85,216.73,23.18648154]
[1733782058309,20.0,216.81,216.79,79.65596429]
[1733782058500,44.59115771,216.8,216.79,54.93636429]
[1733782058705,44.59115771,216.8,216.72,110.36322458]
[1733782058706,20.68878371,216.8,216.72,110.36322458]
[1733782059150,20.0,216.78,216.72,110.36322458]
[1733782059309,20.0,216.76,216.72,110.36322458]
[1733782059507,0.68878371,216.75,216.72,110.36322458]
[1733782059833,20.0,216.74,216.72,110.36322458]
[1733782060025,0.68878371,216.73,216.72,110.36322458]
[1733782060238,24.46566771,216.73,216.63,124.72151765]
[1733782060547,20.0,216.69,216.63,124.72151765]
[1733782060844,0.68878371,216.68,216.63,124.72151765]
[1733782061001,0.12549,216.67,216.63,116.87581765]
[1733782061202,0.12549,216.67,216.61,3.8e-05]
[1733782061203,0.12549,216.66,216.61,3.8e-05]
[1733782061420,0.81427371,216.66,216.61,3.8e-05]
[1733782061706,0.68878371,216.66,216.61,3.8e-05]
[1733782061907,14.09359487,216.63,216.42,34.77213074]
[1733782062234,7.04696765,216.57,216.53,32.39580779]
[1733782062419,7.04696765,216.57,216.51,32.39580779]
[1733782062623,0.86569031,216.59,216.49,32.39580779]
[1733782062826,14.95930382,216.6,216.49,32.39580779]
[1733782063043,20.0,216.57,216.49,32.39580779]
[1733782063246,0.86583752,216.56,216.47,32.39580779]
[1733782063406,7.04696765,216.61,216.53,32.39580779]
[1733782063606,7.04696765,216.61,216.55,32.39580779]
[1733782063833,0.86570316,216.6,216.51,32.39580779]
[1733782064052,7.04696765,216.61,216.51,32.39580779]
[1733782064340,0.8658132,216.6,216.51,32.39580779]
[1733782064537,7.04696765,216.61,216.51,32.39580779]
[1733782064740,7.04696765,216.61,216.53,32.39580779]
[1733782065036,0.86571695,216.6,216.49,32.39580779]
[1733782065245,0.86571695,216.6,216.36,40.9763]
[1733782065246,7.04696765,216.61,216.55,32.39580779]
[1733782065539,7.04696765,216.61,216.6,32.52129779]
[1733782065840,2.01798829,216.86,216.69,32.39580779]
[1733782066056,70.0,216.96,216.56,0.34983637]
[1733782066057,0.86488816,216.91,216.75,32.39580779]
[1733782066345,80.0,216.88,216.63,32.743742]
[1733782066651,0.12549,216.76,216.57,32.39580779]
[1733782066812,70.0,216.74,216.5,32.39580779]
[1733782067012,0.86576897,216.73,216.52,32.39580779]
[1733782067240,1.1536,216.71,216.52,32.39580779]
[1733782067440,0.12549,216.69,216.49,32.39580779]
[1733782067610,0.86582285,216.68,216.51,32.39580779]
[1733782067809,0.12549,216.67,216.51,32.39580779]
[1733782068025,0.86582895,216.66,216.51,32.39580779]
[1733782068228,0.12549,216.65,216.51,32.39580779]
[1733782068420,0.86577876,216.64,216.51,32.39580779]
[1733782068632,20.0,216.69,216.53,32.39580779]
[1733782068633,0.86569116,216.68,216.53,32.39580779]
[1733782068825,0.86569116,216.68,216.57,32.39580779]
[1733782069041,0.86569116,216.68,216.59,32.39580779]
[1733782069340,1.1533,216.76,216.59,32.39580779]
[1733782069634,1.1533,216.76,216.61,32.39580779]
[1733782070036,1.1533,216.76,216.59,32.39580779]
[1733782070212,0.86544195,216.78,216.6,24.12639683]
[1733782070440,1.1531,216.81,216.68,23.776884]
[1733782070833,1.1531,216.81,216.67,32.39580779]
[1733782071033,0.86510192,216.8,216.61,32.39580779]
[1733782071261,2.018273,216.79,216.64,32.39580779]
[1733782071572,0.86523407,216.78,216.66,32.39580779]
[1733782071740,0.8652195,216.77,216.66,32.39580779]
[1733782071947,0.86514208,216.84,216.69,23.776884]
[1733782072131,12.305,216.92,216.69,23.776884]
[1733782072132,0.86483145,216.91,216.78,32.39580779]
[1733782072335,1.1524,216.94,216.76,32.39580779]
[1733782072570,0.86467209,216.93,216.76,32.39580779]
[1733782073072,1.1524,216.92,216.7,32.39580779]
[1733782073271,70.8649319,216.91,216.67,0.34816951]
[1733782073457,10.0,216.89,216.62,12.5737]
[1733782073657,10.0,216.89,216.56,22.268681]
[1733782073658,0.12549,216.82,216.56,32.39580779]
[1733782073847,0.99083733,216.82,216.58,32.39580779]
[1733782074170,0.12549,216.8,216.58,32.39580779]
[1733782074369,0.99068288,216.8,216.6,32.39580779]
[1733782074569,0.86510902,216.81,216.66,32.39580779]
[1733782074874,0.86511836,216.88,216.64,32.39580779]
[1733782075070,0.86511836,216.88,216.68,32.39580779]
[1733782075273,10.0,216.95,216.63,10.0]
[1733782075274,0.86483489,216.91,216.73,0.12549]
[1733782075451,1.1521,216.99,216.8,32.39580779]
[1733782075774,70.0,217.13,216.8,32.39580779]
[1733782075775,1.1518,217.04,216.91,0.12549]
[1733782075941,0.86412334,217.03,216.89,23.776884]
[1733782076142,0.86412334,217.03,216.9,0.12549]
[1733782076337,0.86403085,217.02,216.87,23.776884]
[1733782076654,1.1515,217.09,216.89,0.12549]
[1733782076836,0.86407566,217.08,216.88,0.34709445]
[1733782077043,0.86407566,217.08,216.89,23.776884]
[1733782077239,0.86407566,217.08,216.87,23.776884]
[1733782077739,0.86407566,217.08,216.84,32.39580779]
[1733782077961,0.12549,217.07,216.83,23.776884]
[1733782078145,0.8643591,217.06,216.85,23.776884]
[1733782078341,0.8643591,217.06,216.83,32.39580779]
[1733782078541,0.8643591,217.06,216.84,0.34747631]
[1733782078782,3.4554,217.05,216.85,32.52129779]
[1733782078946,0.86418774,217.04,216.88,0.12549]
[1733782079144,0.86418774,217.04,216.86,36.8496284]
[1733782079345,0.86420435,217.04,216.9,36.50256374]
[1733782079572,1.1518,217.05,216.9,36.50256374]
[1733782079769,1.1518,217.05,216.91,23.776884]
[1733782079971,3.4554,217.05,216.88,0.34673468]
[1733782080162,0.86408036,217.04,216.82,36.50256374]
[1733782080366,10.86408036,217.04,216.78,36.50256374]
[1733782080666,10.86408036,217.04,216.8,36.50256374]
[1733782080667,1.1519,217.02,216.8,36.50256374]
[1733782080853,0.86441523,217.01,216.82,36.50256374]
[1733782081266,20.0,216.97,216.75,36.50256374]
[1733782081603,0.86470509,216.96,216.83,36.50256374]
[1733782081773,20.0,216.97,216.86,0.12549]
[1733782081985,0.86410919,217.11,216.94,0.12549]
[1733782082151,0.86380592,217.16,217.01,0.12549]
[1733782082473,1.151,217.19,217.05,23.776884]
[1733782082779,3.4519,217.26,217.01,23.776884]
[1733782082960,10.0,217.17,216.95,0.34590915]
[1733782083163,10.0,217.11,216.89,0.34633501]
[1733782083458,10.0,217.03,216.77,0.34683532]
[1733782083661,10.0,217.03,216.67,10.0]
[1733782083662,10.0,216.96,216.73,0.3476269]
[1733782083867,8.7283,217.05,216.66,0.3480369]
[1733782083868,20.0,216.91,216.66,0.3480369]
[1733782084052,20.0,216.91,216.57,13.0024]
[1733782084053,23.902374,216.86,216.62,0.34854009]
[1733782084375,20.0,216.79,216.51,36.50256374]
[1733782084579,20.0,216.75,216.51,36.50256374]
[1733782084778,22.01899629,216.74,216.51,36.50256374]
[1733782085070,20.0,216.69,216.51,36.00256374]
[1733782085273,0.86551025,216.68,216.49,32.5943199]
[1733782085455,0.86551025,216.68,216.48,0.35002561]
[1733782085776,20.0,216.64,216.42,0.3501888]
[1733782085980,0.86589625,216.63,216.42,0.3501888]
[1733782086151,0.86589625,216.63,216.4,10.0]
[1733782086152,20.86589625,216.63,216.4,10.0]
[1733782086354,20.0,216.55,216.36,45.5967199]
[1733782086552,0.86618956,216.54,216.36,32.5943199]
[1733782086764,1.1545,216.53,216.39,32.5943199]
[1733782086968,70.0,216.6,216.3,11.19673992]
[1733782086969,0.86626946,216.56,216.41,32.5943199]
[1733782087174,1.1543,216.58,216.41,32.5943199]
[1733782087370,20.8658042,216.57,216.35,0.35029759]
[1733782087577,20.0,216.53,216.31,32.94535864]
[1733782087763,20.0,216.51,216.31,0.35103874]
[1733782088084,20.0,216.43,216.3,0.8456716]
[1733782088250,0.86678124,216.42,216.3,0.8456716]
[1733782088447,0.86678124,216.42,216.32,10.0]
[1733782088687,0.86650233,216.47,216.32,0.35169385]
[1733782088982,0.86624691,216.52,216.32,0.35169385]
[1733782089153,20.0,216.46,216.3,0.8456716]
[1733782089355,20.0,216.42,216.3,0.8456716]
[1733782089572,0.86676567,216.41,216.3,0.8456716]
[1733782090273,10.86659228,216.51,216.31,0.35187375]
[1733782090577,94.027864,216.5,216.3,0.8456716]
[1733782090784,70.0,216.47,216.3,0.8456716]
[1733782090963,0.86679544,216.46,216.3,0.8456716]
[1733782091355,0.86642982,216.48,216.3,1.19722044]
[1733782091551,70.86642982,216.48,216.3,0.8456716]